[Event "Titled Tuesday Blitz October 31 Early 2023"]
[White "Federzoni, Enzo"]
[Black "Volkov, Maksim"]
[WhiteFideId "2173301"]
[BlackFideId "54123070"]
[WhiteElo "2342"]
[BlackElo "2648"]
[Result "0-1"]
[Round "4"]
[TimeControl "180+1"]
[Date "2023.10.31"]
[WhiteClock "0:02:12"]
[BlackClock "0:01:48"]
[Board "85"]

1. e4 {[%clk 0:03:00]}  c5 {[%clk 0:02:59]} 2. Nf3 {[%clk 0:03:00]}  d6 {[%clk 0:03:00]} 3. Bb5+ {[%clk 0:03:00]}  Nd7 {[%clk 0:03:00]} 4. d4 {[%clk 0:03:00]}  cxd4 {[%clk 0:03:00]} 5. Qxd4 {[%clk 0:03:01]}  a6 {[%clk 0:03:01]} 6. Bxd7+ {[%clk 0:03:01]}  Bxd7 {[%clk 0:03:01]} 7. c4 {[%clk 0:03:02]}  Nf6 {[%clk 0:02:40]} 8. Bg5 {[%clk 0:03:00]}  e5 {[%clk 0:02:14]} 9. Qd3 {[%clk 0:03:00]}  h6 {[%clk 0:02:14]} 10. Bxf6 {[%clk 0:02:57]}  Qxf6 {[%clk 0:02:15]} 11. Nc3 {[%clk 0:02:54]}  Bc6 {[%clk 0:02:15]} 12. O-O {[%clk 0:02:53]}  Be7 {[%clk 0:02:15]} 13. Nd5 {[%clk 0:02:51]}  Bxd5 {[%clk 0:02:15]} 14. cxd5 {[%clk 0:02:41]}  O-O {[%clk 0:02:15]} 15. Rac1 {[%clk 0:02:39]}  Rfc8 {[%clk 0:02:15]} 16. Nd2 {[%clk 0:02:35]}  Bd8 {[%clk 0:02:02]} 17. Qh3 {[%clk 0:02:31]}  Rxc1 {[%clk 0:01:49]} 18. Rxc1 {[%clk 0:02:32]}  Qf4 {[%clk 0:01:49]} 19. Nf1 {[%clk 0:02:12]}  Qxc1 {[%clk 0:01:48]} 0-1


[Site "https://www.chess.com"]

[Event "Titled Tuesday Blitz October 31 Early 2023"]
[White "Paravyan, David"]
[Black "Kiseljova, Marya"]
[WhiteFideId "4194985"]
[BlackFideId "4155009"]
[WhiteElo "3072"]
[BlackElo "2233"]
[Result "1-0"]
[Round "4"]
[TimeControl "180+1"]
[Date "2023.10.31"]
[WhiteClock "0:01:23"]
[BlackClock "0:00:05"]
[Board "88"]

1. e4 {[%clk 0:03:00]}  c5 {[%clk 0:02:59]} 2. Nf3 {[%clk 0:03:01]}  Nc6 {[%clk 0:02:59]} 3. Bb5 {[%clk 0:03:00]}  e5 {[%clk 0:02:59]} 4. O-O {[%clk 0:02:59]}  Bd6 {[%clk 0:02:58]} 5. d3 {[%clk 0:03:00]}  Nge7 {[%clk 0:02:55]} 6. Nc3 {[%clk 0:02:59]}  O-O {[%clk 0:02:54]} 7. Nh4 {[%clk 0:02:58]}  a6 {[%clk 0:02:51]} 8. Bc4 {[%clk 0:02:57]}  b5 {[%clk 0:02:50]} 9. Bb3 {[%clk 0:02:57]}  Nd4 {[%clk 0:02:39]} 10. Qh5 {[%clk 0:02:49]}  Nxb3 {[%clk 0:02:27]} 11. axb3 {[%clk 0:02:50]}  Bb7 {[%clk 0:02:24]} 12. f4 {[%clk 0:02:42]}  f6 {[%clk 0:02:05]} 13. f5 {[%clk 0:02:35]}  Qe8 {[%clk 0:02:03]} 14. Qg4 {[%clk 0:02:35]}  Bc7 {[%clk 0:01:51]} 15. Rf3 {[%clk 0:02:35]}  Qf7 {[%clk 0:01:44]} 16. Rg3 {[%clk 0:02:32]}  Kh8 {[%clk 0:01:44]} 17. Rh3 {[%clk 0:02:32]}  Kg8 {[%clk 0:01:39]} 18. Bh6 {[%clk 0:02:30]}  Kh8 {[%clk 0:00:51]} 19. Be3 {[%clk 0:02:27]}  Kg8 {[%clk 0:00:49]} 20. Bxc5 {[%clk 0:02:26]}  d5 {[%clk 0:00:49]} 21. exd5 {[%clk 0:02:19]}  Rfd8 {[%clk 0:00:46]} 22. Ne4 {[%clk 0:02:08]}  Bxd5 {[%clk 0:00:39]} 23. b4 {[%clk 0:01:29]}  Bc6 {[%clk 0:00:24]} 24. Re1 {[%clk 0:01:25]}  Nd5 {[%clk 0:00:23]} 25. Ng6 {[%clk 0:01:24]}  Nf4 {[%clk 0:00:16]} 26. Rxh7 {[%clk 0:01:23]}  Nxg6 {[%clk 0:00:08]} 27. fxg6 {[%clk 0:01:22]}  Qd7 {[%clk 0:00:05]} 28. Rh8+ {[%clk 0:01:22]}  Kxh8 {[%clk 0:00:05]} 29. Qh5+ {[%clk 0:01:23]}  Kg8 {[%clk 0:00:05]} 30. Qh7# {[%clk 0:01:23]} 1-0


[Site "https://www.chess.com"]

[Event "Titled Tuesday Blitz October 31 Early 2023"]
[White "Costachi, Mihnea"]
[Black "Goltseva, Ekaterina"]
[WhiteFideId "1217518"]
[BlackFideId "24173770"]
[WhiteElo "2747"]
[BlackElo "2513"]
[Result "0-1"]
[Round "4"]
[TimeControl "180+1"]
[Date "2023.10.31"]
[WhiteClock "0:00:57"]
[BlackClock "0:00:06"]
[Board "90"]

1. Nc3 {[%clk 0:02:57]}  g6 {[%clk 0:02:58]} 2. e4 {[%clk 0:02:55]}  Bg7 {[%clk 0:02:59]} 3. d4 {[%clk 0:02:55]}  d6 {[%clk 0:02:58]} 4. Be3 {[%clk 0:02:55]}  c6 {[%clk 0:02:58]} 5. h4 {[%clk 0:02:55]}  h6 {[%clk 0:02:57]} 6. h5 {[%clk 0:02:54]}  g5 {[%clk 0:02:57]} 7. Qd2 {[%clk 0:02:54]}  b5 {[%clk 0:02:58]} 8. a3 {[%clk 0:02:54]}  Nd7 {[%clk 0:02:52]} 9. f4 {[%clk 0:02:54]}  gxf4 {[%clk 0:02:50]} 10. Bxf4 {[%clk 0:02:55]}  Nb6 {[%clk 0:02:48]} 11. d5 {[%clk 0:02:48]}  Nc4 {[%clk 0:02:41]} 12. Bxc4 {[%clk 0:02:47]}  bxc4 {[%clk 0:02:42]} 13. dxc6 {[%clk 0:02:48]}  Qb6 {[%clk 0:02:37]} 14. Nge2 {[%clk 0:02:39]}  Nf6 {[%clk 0:02:24]} 15. Be3 {[%clk 0:02:24]}  Qxc6 {[%clk 0:02:21]} 16. Nd4 {[%clk 0:02:22]}  Qb7 {[%clk 0:02:13]} 17. O-O-O {[%clk 0:02:22]}  Nxe4 {[%clk 0:02:01]} 18. Nxe4 {[%clk 0:02:20]}  Qxe4 {[%clk 0:02:02]} 19. Rhe1 {[%clk 0:02:17]}  Bg4 {[%clk 0:01:35]} 20. Nf3 {[%clk 0:02:03]}  c3 {[%clk 0:01:19]} 21. bxc3 {[%clk 0:01:58]}  Qa4 {[%clk 0:01:18]} 22. Qd3 {[%clk 0:01:52]}  Qxa3+ {[%clk 0:01:03]} 23. Kd2 {[%clk 0:01:52]}  Bxf3 {[%clk 0:00:36]} 24. gxf3 {[%clk 0:01:48]}  Rc8 {[%clk 0:00:35]} 25. Bd4 {[%clk 0:01:45]}  Bxd4 {[%clk 0:00:35]} 26. Qxd4 {[%clk 0:01:44]}  Rg8 {[%clk 0:00:35]} 27. Rg1 {[%clk 0:01:41]}  Rxg1 {[%clk 0:00:26]} 28. Rxg1 {[%clk 0:01:41]}  Kd7 {[%clk 0:00:22]} 29. Rb1 {[%clk 0:01:36]}  Qc5 {[%clk 0:00:20]} 30. Qa4+ {[%clk 0:01:30]}  Kd8 {[%clk 0:00:18]} 31. Qd4 {[%clk 0:01:28]}  Qxd4+ {[%clk 0:00:17]} 32. cxd4 {[%clk 0:01:29]}  a5 {[%clk 0:00:11]} 33. Rg1 {[%clk 0:01:25]}  Kd7 {[%clk 0:00:08]} 34. Rg7 {[%clk 0:01:24]}  a4 {[%clk 0:00:05]} 35. Kc1 {[%clk 0:01:24]}  Rb8 {[%clk 0:00:05]} 36. Rg1 {[%clk 0:01:13]}  a3 {[%clk 0:00:05]} 37. Kd2 {[%clk 0:01:14]}  Rb5 {[%clk 0:00:04]} 38. Ra1 {[%clk 0:01:15]}  Rxh5 {[%clk 0:00:03]} 39. Rxa3 {[%clk 0:01:15]}  Rh2+ {[%clk 0:00:04]} 40. Kd3 {[%clk 0:01:15]}  h5 {[%clk 0:00:05]} 41. d5 {[%clk 0:01:14]}  f5 {[%clk 0:00:04]} 42. Ra7+ {[%clk 0:01:15]}  Ke8 {[%clk 0:00:04]} 43. c4 {[%clk 0:01:12]}  h4 {[%clk 0:00:04]} 44. Ke3 {[%clk 0:01:13]}  Rc2 {[%clk 0:00:03]} 45. Kf4 {[%clk 0:01:05]}  h3 {[%clk 0:00:03]} 46. Kxf5 {[%clk 0:01:06]}  h2 {[%clk 0:00:03]} 47. Ra8+ {[%clk 0:01:05]}  Kd7 {[%clk 0:00:03]} 48. Rh8 {[%clk 0:01:06]}  Rxc4 {[%clk 0:00:03]} 49. Rxh2 {[%clk 0:01:04]}  Rd4 {[%clk 0:00:04]} 50. f4 {[%clk 0:01:04]}  Rxd5+ {[%clk 0:00:04]} 51. Ke4 {[%clk 0:01:05]}  Rd1 {[%clk 0:00:04]} 52. Rh7 {[%clk 0:01:06]}  Re1+ {[%clk 0:00:05]} 53. Kd4 {[%clk 0:01:06]}  Ke6 {[%clk 0:00:04]} 54. Rh5 {[%clk 0:01:05]}  Kf6 {[%clk 0:00:04]} 55. Ra5 {[%clk 0:01:05]}  e6 {[%clk 0:00:04]} 56. Rb5 {[%clk 0:01:04]}  d5 {[%clk 0:00:04]} 57. Rb8 {[%clk 0:01:03]}  Re4+ {[%clk 0:00:04]} 58. Kc5 {[%clk 0:01:00]}  Rxf4 {[%clk 0:00:05]} 59. Kd6 {[%clk 0:01:01]}  Re4 {[%clk 0:00:04]} 60. Rf8+ {[%clk 0:01:01]}  Kg7 {[%clk 0:00:05]} 61. Rf1 {[%clk 0:01:02]}  d4 {[%clk 0:00:04]} 62. Kc5 {[%clk 0:01:01]}  e5 {[%clk 0:00:03]} 63. Kd5 {[%clk 0:01:01]}  Re3 {[%clk 0:00:04]} 64. Ke6 {[%clk 0:01:02]}  Kg6 {[%clk 0:00:03]} 65. Rg1+ {[%clk 0:01:03]}  Kh5 {[%clk 0:00:03]} 66. Kf5 {[%clk 0:01:03]}  Kh4 {[%clk 0:00:04]} 67. Rg8 {[%clk 0:01:02]}  Kh3 {[%clk 0:00:04]} 68. Rg7 {[%clk 0:01:00]}  d3 {[%clk 0:00:05]} 69. Rd7 {[%clk 0:00:59]}  Kg3 {[%clk 0:00:04]} 70. Rxd3 {[%clk 0:00:56]}  Rxd3 {[%clk 0:00:04]} 71. Ke4 {[%clk 0:00:56]}  Rf3 {[%clk 0:00:04]} 72. Kxe5 {[%clk 0:00:56]}  Rf1 {[%clk 0:00:05]} 73. Ke4 {[%clk 0:00:56]}  Kg4 {[%clk 0:00:04]} 74. Ke3 {[%clk 0:00:57]}  Rf8 {[%clk 0:00:04]} 75. Ke2 {[%clk 0:00:58]}  Kg3 {[%clk 0:00:05]} 76. Ke1 {[%clk 0:00:58]}  Kg2 {[%clk 0:00:06]} 77. Ke2 {[%clk 0:00:57]}  Re8+ {[%clk 0:00:06]} 0-1


[Site "https://www.chess.com"]

[Event "Titled Tuesday Blitz October 31 Early 2023"]
[White "Wizard_97"]
[Black "Shapiro, Viktor"]
[BlackFideId "4175700"]
[WhiteElo "2626"]
[BlackElo "2492"]
[Result "0-1"]
[Round "4"]
[TimeControl "180+1"]
[Date "2023.10.31"]
[WhiteClock "0:00:00"]
[BlackClock "0:00:51"]
[Board "93"]

1. e4 {[%clk 0:03:00]}  Nf6 {[%clk 0:02:59]} 2. e5 {[%clk 0:02:56]}  Nd5 {[%clk 0:03:00]} 3. d4 {[%clk 0:02:56]}  d6 {[%clk 0:03:00]} 4. Nf3 {[%clk 0:02:57]}  Bg4 {[%clk 0:02:59]} 5. Be2 {[%clk 0:02:55]}  e6 {[%clk 0:02:59]} 6. O-O {[%clk 0:02:55]}  Be7 {[%clk 0:02:59]} 7. c4 {[%clk 0:02:55]}  Nb6 {[%clk 0:02:59]} 8. Be3 {[%clk 0:02:55]}  O-O {[%clk 0:02:58]} 9. h3 {[%clk 0:02:53]}  Bh5 {[%clk 0:02:56]} 10. Nc3 {[%clk 0:02:53]}  Nc6 {[%clk 0:02:56]} 11. b3 {[%clk 0:02:51]}  Bg6 {[%clk 0:02:51]} 12. Qc1 {[%clk 0:02:47]}  dxe5 {[%clk 0:02:51]} 13. dxe5 {[%clk 0:02:46]}  Qc8 {[%clk 0:02:38]} 14. Rd1 {[%clk 0:02:42]}  Rd8 {[%clk 0:02:38]} 15. Qb2 {[%clk 0:02:39]}  Nd7 {[%clk 0:02:34]} 16. Na4 {[%clk 0:02:21]}  Be4 {[%clk 0:02:19]} 17. Ng5 {[%clk 0:02:07]}  Bg6 {[%clk 0:02:06]} 18. Nf3 {[%clk 0:02:06]}  Bh5 {[%clk 0:01:59]} 19. Nd4 {[%clk 0:02:00]}  Bxe2 {[%clk 0:01:57]} 20. Nxc6 {[%clk 0:02:00]}  bxc6 {[%clk 0:01:56]} 21. Qxe2 {[%clk 0:02:00]}  Nxe5 {[%clk 0:01:56]} 22. Rxd8+ {[%clk 0:01:52]}  Bxd8 {[%clk 0:01:56]} 23. Rd1 {[%clk 0:01:45]}  Bf6 {[%clk 0:01:56]} 24. Nc5 {[%clk 0:01:40]}  Ng6 {[%clk 0:01:56]} 25. Qf3 {[%clk 0:01:27]}  Ne5 {[%clk 0:01:54]} 26. Qe4 {[%clk 0:01:24]}  Qe8 {[%clk 0:01:47]} 27. Bf4 {[%clk 0:01:07]}  Qe7 {[%clk 0:01:33]} 28. b4 {[%clk 0:00:36]}  Ng6 {[%clk 0:01:29]} 29. Qxc6 {[%clk 0:00:35]}  Rf8 {[%clk 0:01:26]} 30. Bxc7 {[%clk 0:00:33]}  Be5 {[%clk 0:01:24]} 31. Bd6 {[%clk 0:00:18]}  Bxd6 {[%clk 0:01:23]} 32. Qxd6 {[%clk 0:00:17]}  Qh4 {[%clk 0:01:22]} 33. Nd7 {[%clk 0:00:17]}  Re8 {[%clk 0:01:17]} 34. Qc7 {[%clk 0:00:15]}  h6 {[%clk 0:01:12]} 35. c5 {[%clk 0:00:15]}  Qxb4 {[%clk 0:01:12]} 36. c6 {[%clk 0:00:15]}  Qc4 {[%clk 0:01:08]} 37. Qb7 {[%clk 0:00:09]}  Qc2 {[%clk 0:01:06]} 38. Rf1 {[%clk 0:00:08]}  Nf4 {[%clk 0:00:58]} 39. c7 {[%clk 0:00:08]}  Nd5 {[%clk 0:00:58]} 40. Qb8 {[%clk 0:00:06]}  Nxc7 {[%clk 0:00:57]} 41. Qxa7 {[%clk 0:00:06]}  Nd5 {[%clk 0:00:57]} 42. Ne5 {[%clk 0:00:07]}  Qf5 {[%clk 0:00:56]} 43. Nf3 {[%clk 0:00:02]}  Nf4 {[%clk 0:00:56]} 44. Nh2 {[%clk 0:00:01]}  Qg5 {[%clk 0:00:54]} 45. Qb7 {[%clk 0:00:00]}  Rd8 {[%clk 0:00:51]} 46. Kh1 {[%clk 0:00:00]}  Rd5 {[%clk 0:00:51]} 47. a4 {[%clk 0:00:00]}  Qxg2# {[%clk 0:00:51]} 0-1


[Site "https://www.chess.com"]

[Event "Titled Tuesday Blitz October 31 Early 2023"]
[White "Leyva Proenza, Richard"]
[Black "Rosenberg, Evan S"]
[WhiteFideId "3500985"]
[BlackFideId "2019299"]
[WhiteElo "2611"]
[BlackElo "2473"]
[Result "0-1"]
[Round "4"]
[TimeControl "180+1"]
[Date "2023.10.31"]
[WhiteClock "0:01:20"]
[BlackClock "0:00:48"]
[Board "95"]

1. e4 {[%clk 0:02:59]}  e5 {[%clk 0:02:59]} 2. d4 {[%clk 0:02:56]}  exd4 {[%clk 0:02:59]} 3. Qxd4 {[%clk 0:02:57]}  Nc6 {[%clk 0:02:59]} 4. Qe3 {[%clk 0:02:56]}  Nf6 {[%clk 0:02:59]} 5. Nc3 {[%clk 0:02:55]}  Bb4 {[%clk 0:02:58]} 6. Bd2 {[%clk 0:02:54]}  O-O {[%clk 0:02:56]} 7. O-O-O {[%clk 0:02:54]}  Re8 {[%clk 0:02:55]} 8. Bc4 {[%clk 0:02:54]}  Ne5 {[%clk 0:02:42]} 9. Bb3 {[%clk 0:02:53]}  c6 {[%clk 0:02:42]} 10. f4 {[%clk 0:02:43]}  Neg4 {[%clk 0:02:41]} 11. Qg3 {[%clk 0:02:43]}  Bxc3 {[%clk 0:02:17]} 12. Bxc3 {[%clk 0:02:34]}  Rxe4 {[%clk 0:02:17]} 13. h3 {[%clk 0:02:20]}  Nh6 {[%clk 0:01:44]} 14. Qf3 {[%clk 0:02:10]}  d5 {[%clk 0:01:36]} 15. g4 {[%clk 0:02:10]}  Nhxg4 {[%clk 0:01:29]} 16. hxg4 {[%clk 0:02:09]}  Bxg4 {[%clk 0:01:29]} 17. Qf1 {[%clk 0:02:01]}  Bxd1 {[%clk 0:01:29]} 18. Qxd1 {[%clk 0:02:02]}  Rxf4 {[%clk 0:01:26]} 19. Ne2 {[%clk 0:01:45]}  Re4 {[%clk 0:01:02]} 20. Nd4 {[%clk 0:01:45]}  Ng4 {[%clk 0:00:56]} 21. Nf5 {[%clk 0:01:38]}  Qg5+ {[%clk 0:00:56]} 22. Kb1 {[%clk 0:01:34]}  Qxf5 {[%clk 0:00:56]} 23. a4 {[%clk 0:01:25]}  Rae8 {[%clk 0:00:55]} 24. Ka2 {[%clk 0:01:24]}  Nf2 {[%clk 0:00:54]} 25. Qg1 {[%clk 0:01:23]}  Rg4 {[%clk 0:00:52]} 26. Qh2 {[%clk 0:01:20]}  Nxh1 {[%clk 0:00:52]} 27. Qxh1 {[%clk 0:01:20]}  h5 {[%clk 0:00:48]} 0-1


[Site "https://www.chess.com"]

[Event "Titled Tuesday Blitz October 31 Early 2023"]
[White "Kim, Sergey"]
[Black "Miszler, Levente"]
[WhiteFideId "13700570"]
[BlackFideId "763276"]
[WhiteElo "2605"]
[BlackElo "2420"]
[Result "1-0"]
[Round "4"]
[TimeControl "180+1"]
[Date "2023.10.31"]
[WhiteClock "0:01:11"]
[BlackClock "0:00:12"]
[Board "97"]

1. d4 {[%clk 0:03:00]}  Nf6 {[%clk 0:02:56]} 2. c4 {[%clk 0:03:00]}  c5 {[%clk 0:02:56]} 3. d5 {[%clk 0:02:58]}  e6 {[%clk 0:02:56]} 4. Nc3 {[%clk 0:02:57]}  exd5 {[%clk 0:02:56]} 5. cxd5 {[%clk 0:02:58]}  d6 {[%clk 0:02:55]} 6. e4 {[%clk 0:02:58]}  a6 {[%clk 0:02:53]} 7. a4 {[%clk 0:02:57]}  g6 {[%clk 0:02:53]} 8. Nge2 {[%clk 0:02:57]}  Bg7 {[%clk 0:02:54]} 9. Ng3 {[%clk 0:02:58]}  O-O {[%clk 0:02:54]} 10. Be2 {[%clk 0:02:58]}  Re8 {[%clk 0:02:55]} 11. O-O {[%clk 0:02:58]}  b6 {[%clk 0:02:53]} 12. Bf4 {[%clk 0:02:58]}  Qc7 {[%clk 0:02:52]} 13. Qd2 {[%clk 0:02:58]}  Nbd7 {[%clk 0:02:52]} 14. Bh6 {[%clk 0:02:58]}  Rb8 {[%clk 0:02:48]} 15. Bxg7 {[%clk 0:02:57]}  Kxg7 {[%clk 0:02:49]} 16. f4 {[%clk 0:02:57]}  Bb7 {[%clk 0:02:42]} 17. Rae1 {[%clk 0:02:53]}  Re7 {[%clk 0:02:42]} 18. e5 {[%clk 0:02:50]}  Ne8 {[%clk 0:02:22]} 19. e6 {[%clk 0:02:39]}  Ndf6 {[%clk 0:02:10]} 20. f5 {[%clk 0:02:38]}  fxe6 {[%clk 0:02:04]} 21. fxe6 {[%clk 0:02:37]}  b5 {[%clk 0:01:58]} 22. axb5 {[%clk 0:02:30]}  axb5 {[%clk 0:01:58]} 23. Qg5 {[%clk 0:02:25]}  b4 {[%clk 0:01:53]} 24. Nf5+ {[%clk 0:02:07]}  Kg8 {[%clk 0:01:51]} 25. Nxe7+ {[%clk 0:02:08]}  Qxe7 {[%clk 0:01:49]} 26. Ne4 {[%clk 0:02:07]}  Nxd5 {[%clk 0:01:41]} 27. Qh6 {[%clk 0:01:55]}  Nef6 {[%clk 0:01:28]} 28. Ng5 {[%clk 0:01:48]}  Rf8 {[%clk 0:01:13]} 29. Bf3 {[%clk 0:01:38]}  c4 {[%clk 0:01:09]} 30. Bxd5 {[%clk 0:01:29]}  Bxd5 {[%clk 0:01:08]} 31. Qh4 {[%clk 0:01:20]}  h5 {[%clk 0:00:31]} 32. Qd4 {[%clk 0:01:18]}  Ng4 {[%clk 0:00:17]} 33. Rxf8+ {[%clk 0:01:14]}  Qxf8 {[%clk 0:00:12]} 34. e7 {[%clk 0:01:11]} 1-0


[Site "https://www.chess.com"]

[Event "Titled Tuesday Blitz October 31 Early 2023"]
[White "Souza, Gustavo Horokoski De"]
[Black "TimGrutter03"]
[WhiteFideId "2146584"]
[WhiteElo "2146"]
[BlackElo "2536"]
[Result "0-1"]
[Round "4"]
[TimeControl "180+1"]
[Date "2023.10.31"]
[WhiteClock "0:01:52"]
[BlackClock "0:02:46"]
[Board "100"]

1. c4 {[%clk 0:03:00]}  g6 {[%clk 0:02:59]} 2. Nc3 {[%clk 0:03:00]}  Bg7 {[%clk 0:02:59]} 3. e4 {[%clk 0:03:01]}  e5 {[%clk 0:02:59]} 4. Nf3 {[%clk 0:03:00]}  Nf6 {[%clk 0:02:58]} 5. d4 {[%clk 0:02:59]}  exd4 {[%clk 0:02:58]} 6. Nxd4 {[%clk 0:03:00]}  O-O {[%clk 0:02:55]} 7. Be3 {[%clk 0:03:00]}  Re8 {[%clk 0:02:54]} 8. f3 {[%clk 0:03:01]}  c6 {[%clk 0:02:54]} 9. Be2 {[%clk 0:02:59]}  d5 {[%clk 0:02:54]} 10. cxd5 {[%clk 0:02:54]}  cxd5 {[%clk 0:02:55]} 11. Bd3 {[%clk 0:02:49]}  Nc6 {[%clk 0:02:49]} 12. Nxc6 {[%clk 0:02:43]}  bxc6 {[%clk 0:02:48]} 13. O-O {[%clk 0:01:52]}  d4 {[%clk 0:02:46]} 0-1


[Site "https://www.chess.com"]

[Event "Titled Tuesday Blitz October 31 Early 2023"]
[White "El_Matador12"]
[Black "DonCiao"]
[WhiteElo "2517"]
[BlackElo "2144"]
[Result "1-0"]
[Round "4"]
[TimeControl "180+1"]
[Date "2023.10.31"]
[WhiteClock "0:01:21"]
[BlackClock "0:00:03"]
[Board "102"]

1. d4 {[%clk 0:03:00]}  Nf6 {[%clk 0:02:59]} 2. Bg5 {[%clk 0:03:00]}  e6 {[%clk 0:02:57]} 3. e4 {[%clk 0:02:59]}  h6 {[%clk 0:02:57]} 4. Bxf6 {[%clk 0:02:57]}  Qxf6 {[%clk 0:02:57]} 5. c3 {[%clk 0:02:58]}  d6 {[%clk 0:02:54]} 6. Nd2 {[%clk 0:02:56]}  g6 {[%clk 0:02:54]} 7. Bc4 {[%clk 0:02:55]}  Bg7 {[%clk 0:02:53]} 8. Ne2 {[%clk 0:02:56]}  Qe7 {[%clk 0:02:53]} 9. O-O {[%clk 0:02:56]}  O-O {[%clk 0:02:53]} 10. f4 {[%clk 0:02:57]}  Nd7 {[%clk 0:02:46]} 11. e5 {[%clk 0:02:56]}  d5 {[%clk 0:02:43]} 12. Bd3 {[%clk 0:02:57]}  c5 {[%clk 0:02:43]} 13. Kh1 {[%clk 0:02:56]}  a6 {[%clk 0:02:35]} 14. Nf3 {[%clk 0:02:55]}  b5 {[%clk 0:02:33]} 15. g4 {[%clk 0:02:56]}  cxd4 {[%clk 0:02:02]} 16. cxd4 {[%clk 0:02:52]}  Nb6 {[%clk 0:01:59]} 17. Ng3 {[%clk 0:02:51]}  Nc4 {[%clk 0:01:57]} 18. Qe2 {[%clk 0:02:51]}  Bb7 {[%clk 0:01:46]} 19. f5 {[%clk 0:02:49]}  exf5 {[%clk 0:01:39]} 20. gxf5 {[%clk 0:02:50]}  Qd7 {[%clk 0:01:19]} 21. b3 {[%clk 0:02:35]}  Nb6 {[%clk 0:00:59]} 22. Qe3 {[%clk 0:02:31]}  Rae8 {[%clk 0:00:48]} 23. fxg6 {[%clk 0:02:21]}  f6 {[%clk 0:00:40]} 24. Bf5 {[%clk 0:02:17]}  Qe7 {[%clk 0:00:36]} 25. e6 {[%clk 0:02:17]}  Nc8 {[%clk 0:00:34]} 26. Rae1 {[%clk 0:02:01]}  Nd6 {[%clk 0:00:33]} 27. Nh4 {[%clk 0:02:02]}  Bc8 {[%clk 0:00:21]} 28. Nh5 {[%clk 0:01:53]}  Nxf5 {[%clk 0:00:19]} 29. Nxf5 {[%clk 0:01:54]}  Qxe6 {[%clk 0:00:19]} 30. Qxe6+ {[%clk 0:01:37]}  Rxe6 {[%clk 0:00:12]} 31. Rxe6 {[%clk 0:01:25]}  Bxe6 {[%clk 0:00:11]} 32. Nhxg7 {[%clk 0:01:25]}  Bxf5 {[%clk 0:00:09]} 33. Nxf5 {[%clk 0:01:26]}  Re8 {[%clk 0:00:08]} 34. g7 {[%clk 0:01:21]}  Re2 {[%clk 0:00:07]} 35. Rg1 {[%clk 0:01:21]}  Rxa2 {[%clk 0:00:03]} 36. Nxh6+ {[%clk 0:01:21]} 1-0


[Site "https://www.chess.com"]

[Event "Titled Tuesday Blitz October 31 Early 2023"]
[White "Baskakov, Egor"]
[Black "Bashirli, Saadat"]
[WhiteFideId "24197866"]
[BlackFideId "13429990"]
[WhiteElo "2916"]
[BlackElo "2398"]
[Result "1-0"]
[Round "4"]
[TimeControl "180+1"]
[Date "2023.10.31"]
[WhiteClock "0:00:27"]
[BlackClock "0:00:01"]
[Board "103"]

1. e4 {[%clk 0:03:00]}  e5 {[%clk 0:03:00]} 2. Nc3 {[%clk 0:03:00]}  Nc6 {[%clk 0:03:00]} 3. g3 {[%clk 0:03:00]}  Bc5 {[%clk 0:02:59]} 4. Bg2 {[%clk 0:03:01]}  Nf6 {[%clk 0:02:59]} 5. h3 {[%clk 0:03:00]}  O-O {[%clk 0:02:59]} 6. Nge2 {[%clk 0:03:01]}  d6 {[%clk 0:02:59]} 7. d3 {[%clk 0:03:01]}  Be6 {[%clk 0:02:59]} 8. Nd5 {[%clk 0:03:01]}  Bxd5 {[%clk 0:02:57]} 9. exd5 {[%clk 0:03:02]}  Ne7 {[%clk 0:02:58]} 10. c4 {[%clk 0:03:02]}  Qd7 {[%clk 0:02:55]} 11. O-O {[%clk 0:03:01]}  a6 {[%clk 0:02:55]} 12. Kh2 {[%clk 0:03:01]}  Nf5 {[%clk 0:02:55]} 13. Nc3 {[%clk 0:02:58]}  h6 {[%clk 0:02:53]} 14. f4 {[%clk 0:02:57]}  exf4 {[%clk 0:02:50]} 15. Bxf4 {[%clk 0:02:48]}  Rae8 {[%clk 0:02:43]} 16. Ne4 {[%clk 0:02:31]}  Nxe4 {[%clk 0:02:41]} 17. Bxe4 {[%clk 0:02:31]}  Ne3 {[%clk 0:02:36]} 18. Bxe3 {[%clk 0:02:26]}  Bxe3 {[%clk 0:02:37]} 19. Qh5 {[%clk 0:02:08]}  Re5 {[%clk 0:02:30]} 20. Qf3 {[%clk 0:01:59]}  Bd4 {[%clk 0:02:24]} 21. g4 {[%clk 0:01:59]}  Re7 {[%clk 0:02:13]} 22. h4 {[%clk 0:01:50]}  Bxb2 {[%clk 0:02:11]} 23. Rab1 {[%clk 0:01:49]}  Be5+ {[%clk 0:02:12]} 24. Kg2 {[%clk 0:01:48]}  c6 {[%clk 0:02:08]} 25. g5 {[%clk 0:01:48]}  cxd5 {[%clk 0:01:55]} 26. Bxd5 {[%clk 0:01:47]}  Qa4 {[%clk 0:01:23]} 27. Rf2 {[%clk 0:01:40]}  Bd4 {[%clk 0:01:21]} 28. Re2 {[%clk 0:01:39]}  Rxe2+ {[%clk 0:01:17]} 29. Qxe2 {[%clk 0:01:39]}  Re8 {[%clk 0:01:12]} 30. Qd2 {[%clk 0:01:26]}  hxg5 {[%clk 0:01:12]} 31. Rxb7 {[%clk 0:01:23]}  Rf8 {[%clk 0:00:52]} 32. hxg5 {[%clk 0:01:09]}  g6 {[%clk 0:00:51]} 33. Qe2 {[%clk 0:00:45]}  Be5 {[%clk 0:00:46]} 34. Qf2 {[%clk 0:00:43]}  Qe8 {[%clk 0:00:39]} 35. Qe3 {[%clk 0:00:40]}  Qd8 {[%clk 0:00:31]} 36. d4 {[%clk 0:00:38]}  Bg7 {[%clk 0:00:23]} 37. Qf4 {[%clk 0:00:38]}  Qe8 {[%clk 0:00:21]} 38. Kf2 {[%clk 0:00:38]}  a5 {[%clk 0:00:14]} 39. a4 {[%clk 0:00:38]}  Kh8 {[%clk 0:00:12]} 40. Bxf7 {[%clk 0:00:36]}  Rxf7 {[%clk 0:00:09]} 41. Qxf7 {[%clk 0:00:27]}  Bxd4+ {[%clk 0:00:09]} 42. Kf1 {[%clk 0:00:27]}  Qxf7+ {[%clk 0:00:06]} 43. Rxf7 {[%clk 0:00:28]}  Bc5 {[%clk 0:00:06]} 44. Rd7 {[%clk 0:00:26]}  Kg8 {[%clk 0:00:04]} 45. Kg2 {[%clk 0:00:27]}  Kf8 {[%clk 0:00:04]} 46. Kf3 {[%clk 0:00:26]}  Kg8 {[%clk 0:00:01]} 47. Ke4 {[%clk 0:00:26]}  Kf8 {[%clk 0:00:02]} 48. Kd5 {[%clk 0:00:27]}  Be3 {[%clk 0:00:02]} 49. Kxd6 {[%clk 0:00:25]}  Bxg5 {[%clk 0:00:02]} 50. c5 {[%clk 0:00:25]}  Bf4+ {[%clk 0:00:02]} 51. Ke6 {[%clk 0:00:25]}  g5 {[%clk 0:00:03]} 52. c6 {[%clk 0:00:25]}  g4 {[%clk 0:00:03]} 53. c7 {[%clk 0:00:26]}  Bxc7 {[%clk 0:00:03]} 54. Rf7+ {[%clk 0:00:26]}  Kg8 {[%clk 0:00:02]} 55. Rxc7 {[%clk 0:00:27]}  g3 {[%clk 0:00:03]} 56. Rc2 {[%clk 0:00:27]}  g2 {[%clk 0:00:01]} 57. Rxg2+ {[%clk 0:00:27]} 1-0


[Site "https://www.chess.com"]